Cogmind - Beta 13 @@@ ROGUE MODE // 2024.04.15 @ 19:50:40 Player: Lunace Result: Destroyed by D-53 Grenadier with Mini Grenade Launcher Performance ------------- Evolutions (0) 0 Regions Visited (4) 800 Robots Destroyed (12) 60 Value Destroyed (317) 317 Prototype IDs (23) 460 Alien Tech Used (0) 0 Bonus (300) 300 TOTAL SCORE: 1937 Bonus ------- Aligned with FarCom 300 Cogmind --------- Core Integrity 0/250 Matter 300/300 Energy 180/250 System Corruption 0% Temperature Cool (0) Movement Core (850) Ox16 Location -9/Mines Parts ------- > --- POWER (1) -------- Ion Engine > --- PROPULSION (2) --- (None) > --- UTILITY (2) ------ High-capacity Storage Unit Core Shielding > --- WEAPON (2) ------- Mining Claw Longsword +1 > --- INVENTORY (20) --- Wheel Heat Sink Medium Battery (150) Large Matter Pod (150) Large Matter Pod (150) Large Matter Pod (150) Signal Interpreter Rocket Launcher Peak State ------------ > --- POWER ------------ Ion Engine > --- PROPULSION ------- Light Treads Flexi-carbon Leg > --- UTILITY ---------- High-capacity Storage Unit Light Armor Plating > --- WEAPON ----------- Rocket Launcher Longsword +1 > --- INVENTORY -------- Ion Engine Wheel Heat Sink Medium Battery Large Matter Pod Large Matter Pod Large Matter Pod Signal Interpreter Core Shielding Mining Claw [Rating: 20] Favorites ----------- Power Ion Engine Engine Ion Engine Propulsion Light Treads Treads Light Treads Leg Flexi-carbon Leg Utility Small Storage Unit Device Heat Sink Storage Small Storage Unit Protection Light Armor Plating Weapon Medium Laser Energy Gun Medium Laser Launcher Rocket Launcher Slashing Weapon Longsword +1 Build | -11 -10 -10 -10 -9 ------- Run | Yrd Mat Min Exi Min Slots Evolved . | . . . . . Power . | . . . . . Propulsion . | . . . . . Utility . | . . . . . Weapon . | . . . . . Parts Attached 20 | 6 5 3 2 4 Power 2 | 1 . . . 1 Engine 2 | 1 . . . 1 Core . | . . . . . Reactor . | . . . . . Propulsion 3 | 2 . . . 1 Treads 2 | 2 . . . . Leg 1 | . . . . 1 Wheel . | . . . . . Hover . | . . . . . Flight . | . . . . . Utility 9 | 1 5 1 1 1 Device 2 | . 2 . . . Storage 2 | 1 . . 1 . Processor . | . . . . . Hackware . | . . . . . Protection 5 | . 3 1 . 1 Artifact . | . . . . . Weapon 6 | 2 . 2 1 1 Energy Gun 2 | 2 . . . . Energy Cannon . | . . . . . Ballistic Gun . | . . . . . Ballistic Cannon . | . . . . . Launcher 1 | . . 1 . . Special Weapon . | . . . . . Impact Weapon . | . . . . . Slashing Weapon 3 | . . 1 1 1 Piercing Weapon . | . . . . . Special Melee Weapon . | . . . . . Unidentified Prototypes . | . . . . . Parts Lost 7 | . . 2 . 5 Power 1 | . . . . 1 Propulsion 3 | . . . . 3 Utility 2 | . . 1 . 1 Weapon 1 | . . 1 . . Highest Loss Streak 5 | . . 1 . 5 To Critical Strikes . | . . . . . Average Slot Usage (%) 99 | . 99 100 100 85 Engine 13 | . 14 14 14 12 Treads 27 | . 28 28 28 14 Storage 14 | . 14 14 14 14 Protection 13 | . 12 14 14 14 Energy Gun 17 | . 28 18 5 . Launcher 6 | . . 7 14 8 Slashing Weapon 3 | . . 1 8 16 Naked Turns . | . . . . . Heaviest Build 55 | 14 17 19 55 55 Greatest Support 40 | 40 40 40 40 40 Greatest Overweight (x) 2 | 1 . . 1 2 Average Overweight (x) . | . . . . 1 Largest Inventory Capacity 20 | 8 8 8 20 20 Average Capacity 9 | 7 8 8 11 20 Most Carried 11 | 2 8 8 10 11 Average Carried 6 | 1 4 7 7 9 Final Capacity 20 | 8 8 8 20 20 Final Carried 10 | 2 8 7 10 8 Class Distribution -------------------- 100% | Mutant Dominant Class ---------------- Mutant | -10/Materials Mutant | -10/Mines Mutant | -10/Exiles Mutant | -9/Mines Resources | -11 -10 -10 -10 -9 ----------- Run | Yrd Mat Min Exi Min Matter Collected 774 | 260 100 148 187 79 Remotely . | . . . . . Salvage Created 565 | 81 216 135 . 133 Parts 25 | 2 14 8 . 1 Haulers Intercepted . | . . . . . Recyclers Shooed . | . . . . . Parts Field Recycled . | . . . . . Retrieved Matter . | . . . . . Parts Self-Destructed . | . . . . . Prevented . | . . . . . Kills | -11 -10 -10 -10 -9 ------- Run | Yrd Mat Min Exi Min Combat Hostiles Destroyed 16 | . 5 3 . 8 Melee 9 | . . 1 . 8 Guns 6 | . 4 2 . . Classes Destroyed 7 | 1 2 2 . 2 Worker 1 | . . . . 1 Tunneler 1 | . . 1 . . Recycler 1 | 1 . . . . Watcher 1 | . 1 . . . Swarmer 1 | . . 1 . . Grunt 7 | . 5 2 . . Assembled 8 | . . . . 8 Best Kill Streak 9 | 1 2 2 . 9 Combat Bots Only 8 | . 1 2 . 8 Max Kills in Single Turn 1 | 1 1 1 . 1 Gunslinging . | . . . . . Exploded . | . . . . . Melee 1 | . . 1 . 1 Uniques/NPCs Destroyed . | . . . . . Combat | -11 -10 -10 -10 -9 -------- Run | Yrd Mat Min Exi Min Hostile Shots Fired 116 | . 55 35 . 26 Missed 24 | . 13 8 . 3 Damage Taken 1186 | . 427 286 . 473 Core 267 | . 46 68 . 153 Absorbed by Shields . | . . . . . Redirected to Shielding 19 | . . . . 19 Core Remaining (%) 100 | 100 . . . . Volleys Fired 41 | 1 30 10 . . Largest 2 | 2 2 2 . . Hottest 100 | 100 100 100 . . Shots Fired 65 | 2 51 12 . . Gun 65 | 2 51 12 . . Cannon . | . . . . . Launcher . | . . . . . Special . | . . . . . Kinetic . | . . . . . Thermal 65 | 2 51 12 . . Explosive . | . . . . . Electromagnetic . | . . . . . Robot Hit Streak 7 | 2 7 5 . . Robot Miss Streak 3 | . 3 2 . . Penetration Max . | . . . . . Secondary Targets . | . . . . . Shots Hit Robots 62 | 2 35 11 . 14 Core Hits 27 | 2 12 7 . 6 Critical Kills . | . . . . . Critical Parts Destroyed . | . . . . . Critical Strikes 5 | . 4 1 . . Burn 5 | . 4 1 . . Melee Attacks 19 | . . 3 . 16 Impact . | . . . . . Slashing 19 | . . 3 . 16 Piercing . | . . . . . Sneak Attacks 1 | . . . . 1 Combat Hostiles . | . . . . . Follow-up Attacks 1 | . . . . 1 Damage Inflicted 1446 | 25 440 160 . 821 Guns 577 | 25 440 112 . . Cannons . | . . . . . Explosions . | . . . . . Melee 869 | . . 48 . 821 Ramming . | . . . . . Kinetic . | . . . . . Thermal 577 | 25 440 112 . . Explosive . | . . . . . Electromagnetic . | . . . . . Impact . | . . . . . Slashing 869 | . . 48 . 821 Piercing . | . . . . . Highest Corruption . | . . . . . Average Corruption . | . . . . . Corruption Purged . | . . . . . Corruption Blocked . | . . . . . Overload Shots . | . . . . . Overflow Damage 162 | . . . . 162 Projectiles . | . . . . . Explosions . | . . . . . Melee 162 | . . . . 162 Knockbacks . | . . . . . Impact . | . . . . . Kinetic . | . . . . . Secondary . | . . . . . Self-Inflicted Damage . | . . . . . Shots . | . . . . . Rammed . | . . . . . Targets Rammed . | . . . . . Kicked . | . . . . . Crushed . | . . . . . Highest Temperature 318 | 39 318 114 . 24 Average Temperature 107 | 20 136 46 . 8 Received Heat Transfer 421 | . 165 96 . 160 Effects 1 | . 1 . . . Interference 1 | . 1 . . . Siege Activations . | . . . . . Robots Corrupted . | . . . . . Combat Hostiles . | . . . . . Parts Fried . | . . . . . Impact Corruptions . | . . . . . Robots Melted 1 | . 1 . . . Combat Hostiles 1 | . 1 . . . Parts Melted 5 | . 4 1 . . Heat Transferred 2072 | 74 1591 407 . . Parts Sabotaged . | . . . . . Parts Stolen . | . . . . . Parts Stripped . | . . . . . Power Chain Reactions . | . . . . . Alert | -11 -10 -10 -10 -9 ------- Run | Yrd Mat Min Exi Min Peak Influence 207 | 5 207 78 . 5 Initial 33 | . 3 33 . . Average 59 | 1 92 40 . . Maximum Alert Level 1 | . 1 . . . Low Security (%) 97 | 100 95 100 . 100 Level 1 2 | . 4 . . . Level 2 . | . . . . . Level 3 . | . . . . . Level 4 . | . . . . . Level 5 . | . . . . . High Security . | . . . . . Max Security . | . . . . . Squads Dispatched 1 | . 1 . . . Investigation 1 | . 1 . . . Extermination . | . . . . . Reinforcement . | . . . . . Assault . | . . . . . Garrison . | . . . . . Intercept . | . . . . . Searches Triggered . | . . . . . Construction Impeded . | . . . . . Haulers Reinforced . | . . . . . Active Scanning Responses . | . . . . . Cargo Convoy Interrupts . | . . . . . Stealth | -11 -10 -10 -10 -9 --------- Run | Yrd Mat Min Exi Min Distress Signals 1 | . 1 . . . Communications Jammed . | . . . . . Distress Signals . | . . . . . Times Spotted 32 | . 15 5 . 12 Peak Tracking Total 9 | . 4 3 . 9 Tactical Retreats 4 | . 4 . . . Traps | -11 -10 -10 -10 -9 ------- Run | Yrd Mat Min Exi Min Traps Triggered . | . . . . . Indirectly . | . . . . . Trap Hack Attempts . | . . . . . Triggered . | . . . . . Disarmed . | . . . . . Reprogrammed . | . . . . . Reused 1 | . . 1 . . Traps Extracted . | . . . . . Installed 4 | . . 4 . . Triggered 1 | . . 1 . . Machines | -11 -10 -10 -10 -9 ---------- Run | Yrd Mat Min Exi Min Machines Disabled . | . . . . . Max in Single Turn . | . . . . . Machines Repaired . | . . . . . Machines Dismantled . | . . . . . Machines Sabotaged . | . . . . . Overloaded Fab Kills . | . . . . . Hacking | -11 -10 -10 -10 -9 --------- Run | Yrd Mat Min Exi Min Machines Accessed 7 | . 4 2 1 . Terminals 5 | . 3 2 . . Fabricators . | . . . . . Repair Stations . | . . . . . Recycling Units 1 | . 1 . . . Scanalyzers . | . . . . . Garrison Access . | . . . . . Total Hacks 20 | . 12 7 1 . Successful 8 | . 4 3 1 . Failed 12 | . 8 4 . . Catastrophic 4 | . 3 1 . . Database Lockouts . | . . . . . Manual 19 | . 12 6 1 . Terminals 16 | . 9 7 . . Fabricators . | . . . . . Repair Stations . | . . . . . Recycling Units 3 | . 3 . . . Scanalyzers . | . . . . . Garrison Access . | . . . . . Terminal Hacks 5 | . 1 3 1 . Terminal Index 1 | . 1 . . . Alert Level 1 | . . 1 . . Unreport Threat 1 | . . 1 . . Coupling Status 1 | . . 1 . . Derelict Proto ID Bank 1 | . . . 1 . Fabricator Hacks . | . . . . . Repair Station Hacks . | . . . . . Recycling Unit Hacks . | . . . . . Scanalyzer . | . . . . . Garrison Access Hacks . | . . . . . Unauthorized Hacks 3 | . 3 . . . Terminals 1 | . 1 . . . Operators 1 | . 1 . . . Fabricators . | . . . . . Repair Stations . | . . . . . Recycling Units 2 | . 2 . . . Recyclers 1 | . 1 . . . Tunnel 1 | . 1 . . . Scanalyzers . | . . . . . Garrison Access . | . . . . . Data Cores Recovered . | . . . . . Used . | . . . . . Hacking Detections 5 | . 4 1 . . Full Trace Events . | . . . . . Feedback Events . | . . . . . Feedback Blocked . | . . . . . Robot Schematics Acquired . | . . . . . Robots Built . | . . . . . Authchips . | . . . . . Time . | . . . . . Total Robot Build Rating . | . . . . . Part Schematics Acquired . | . . . . . Parts Built . | . . . . . Authchips . | . . . . . Time . | . . . . . Total Part Build Rating . | . . . . . Parts Repaired . | . . . . . Time . | . . . . . Parts Recycled . | . . . . . Recycled Matter . | . . . . . Retrieved Matter . | . . . . . Retrieved Components . | . . . . . Parts Scanalyzed . | . . . . . Part Schematics Acquired . | . . . . . Parts Damaged . | . . . . . Bothacking | -11 -10 -10 -10 -9 ------------ Run | Yrd Mat Min Exi Min Used RIF Installer . | . . . . . Robots Hacked . | . . . . . Non-combat . | . . . . . Combat . | . . . . . Robot Hacks Applied . | . . . . . Relay Couplers Released . | . . . . . Fabnet Peak Effective % . | . . . . . Robots Rewired . | . . . . . Allies Hacked . | . . . . . Hacks Repelled . | . . . . . Allies | -11 -10 -10 -10 -9 -------- Run | Yrd Mat Min Exi Min Total Allies . | . . . . . Largest Group . | . . . . . Highest-Rated Group . | . . . . . Highest-Rated Ally . | . . . . . Total Orders . | . . . . . Ally Attacks . | . . . . . Total Damage . | . . . . . Kills . | . . . . . Allies Corrupted . | . . . . . Allies Melted . | . . . . . Intel | -11 -10 -10 -10 -9 ------- Run | Yrd Mat Min Exi Min Robot Analysis Total . | . . . . . Derelict Logs Recovered 3 | . . 3 . . Drone Launches . | . . . . . Drone Recoveries . | . . . . . Exploration | -11 -10 -10 -10 -9 ------------- Run | Yrd Mat Min Exi Min Turns Passed 1788 | 87 597 551 476 77 Spaces Moved 934 | 47 292 309 269 17 Core 4 | 4 . . . . Treads 927 | 43 292 309 269 14 Legs 3 | . . . . 3 Wheels . | . . . . . Hover . | . . . . . Flight . | . . . . . Fastest Speed 50 | 50 160 160 160 240 Average Speed 165 | 153 160 160 175 243 Slowest Speed 260 | 160 160 160 240 260 Overloaded Moves . | . . . . . Propulsion Burnouts . | . . . . . Robots Hopped . | . . . . . Cave-ins Triggered . | . . . . . Exploration Rate (%) 36 | 5 46 63 61 6 Regions Visited 4 Branch Regions 3 Pre-discovered Areas 3 | . 1 2 . . Known Exits Taken . | . . . . . Unknown Exits Taken 4 | 1 1 1 1 . Scrap Searched 1 | . . 1 . . Spaces Dug . | . . . . . Terrain Destroyed . | . . . . . Melee . | . . . . . Projectile . | . . . . . AOE . | . . . . . Terrain Rammed . | . . . . . Walls Destroyed . | . . . . . Machines Disabled . | . . . . . Actions | -11 -10 -10 -10 -9 --------- Run | Yrd Mat Min Exi Min Total 1090 | 57 369 350 277 37 Wait 57 | 2 38 17 . . Move 930 | 46 291 308 268 17 Hop . | . . . . . Pick Up 12 | 2 4 2 4 . Fast Attach 11 | 6 2 1 1 1 Attach 5 | . . 2 . 3 Detach 3 | . 1 1 . 1 Swap 4 | . 3 . 1 . Drop 5 | . . 2 3 . Fire 41 | 1 30 10 . . Melee 18 | . . 3 . 15 Ram . | . . . . . Kick . | . . . . . Crush . | . . . . . Escape Stasis . | . . . . . Rewire . | . . . . . Trap 4 | . . 4 . . Miscellaneous . | . . . . . Route ------- -11/Scrapyard -10/Materials (discovered 2 exits: [*Mat] / *Min) -10/Mines -10/Exiles -9/Mines (discovered 1 exit: [*Mat]) History --------- Turn | Location | Event 33 | -11/Scrapyard | Discovered new exit (range 15) 88 | -11/Scrapyard | Entered Materials 318 | -10/Materials | Build established: Mutant 644 | -10/Materials | Discovered new exit (range 7) 647 | -10/Materials | Discovered new exit (range 15) 685 | -10/Materials | Entered Mines 733 | -10/Mines | Learned location of Zion (-7) 930 | -10/Mines | Received a Rocket Launcher from a helpful Derelict 1148 | -10/Mines | Learned location of 1 exit from Materials 1155 | -10/Mines | Found a hidden stash of uninstalled traps 1228 | -10/Mines | Deemed a non-threat by the Exiles lab entrance 1228 | -10/Mines | Discovered new exit (range 5) 1236 | -10/Mines | Entered Exiles 1275 | -10/Exiles | Met 8R-AWN 1302 | -10/Exiles | Met EX-HEX 1352 | -10/Exiles | Met EX-BIN 1372 | -10/Exiles | Aligned with FarCom system 1374 | -10/Exiles | Given EX-Vault access code 1411 | -10/Exiles | Opened EX-Vault 1423 | -10/Exiles | Found Longsword +1 1458 | -10/Exiles | Warned to stay clear of 0b10 Research branches 1501 | -10/Exiles | Met EX-DEC 1693 | -10/Exiles | Discovered new exit (range 10) 1712 | -10/Exiles | Left Exiles lab with Longsword +1 1712 | -10/Exiles | Entered Mines 1721 | -9/Mines | Assembled infested the area 1726 | -9/Mines | Assisted by a Guerilla fighting off Assembled 1747 | -9/Mines | Core integrity fell below 50% 1779 | -9/Mines | Core integrity fell below 20% 1788 | -9/Mines | Discovered new exit (range 12) 1789 | -9/Mines | Destroyed by D-53 Grenadier with Mini Grenade Launcher Last Messages --------------- 01763_ as-28656 destroyed. 01763_ R-06 Scavenger destroyed. 01764_ Lgt. Armor Plating destroyed. 01766_ as-99504 destroyed. 01767_ Acquired 12 matter. 01768_ as-39972 destroyed. 01769_ Ion Engine destroyed. 01772_ as-76938 destroyed. 01773_ Acquired 10 matter. 01774_ Destroyed Asb. F-torch. 01774_ as-00115 destroyed. 01778_ Destroyed Asb. Hover Unit. 01780_ as-53692 destroyed. 01781_ Acquired 15 matter. 01782_ Acquired 3 matter. 01784_ Destroyed Asb. Hover Unit. 01784_ Mining Claw follow-up attack on as-57302. 01788_ as-57302 destroyed. 01788_ Flexi-carbon Leg destroyed. 01788_ EXIT=FOUND Map ----- +----------------------------------------------------+ | ???????????????????????????????????????????????? | | ???????????????????????????????????????????????? | | ???????????????????????????????????????????????? | | ???????????????????????????????????????????????? | | ???????????????????????????????????????????????? | | ???????????????????????????????????????????????? | | ???????????????????????????????????????????????? | | ???????????????????????????????????????????????? | | ???????????????????????????????????????????????? | | ???????????????????????????????????????????????? | | ???????????????????????????????????????????????? | | ???????????????????????????????????????????????? | | ???????????????????????????????????????????????? | | ???????????????????????????????????????????????? | | ???????????????????????????????????????????????? | | ???????????????????????????????????????????????? | | ?????????????????###############???????????????? | | ?????????????????# """ """ """ #???????????????? | | ?????????????????# """ """ """ #???????????????? | | ?????????????????# """ """ """ #???????????????? | | ?????????????????# #???????????????? | | ?????????????????# #???????????????? | | ?????????????????# #???????????????? | | ?????????????????# #???????????????? | | ?????????????????# = #???????????????? | | ?????????????????####### @ #####???????????????? | | ???????????????????????# % #??????????????????? | | ???????????????????????# ! ##??????????????????? | | ???????????????????????# dd%???????????????????? | | ???????????????????????# * ??????????????????? | | ???????????????????????=%!# ##?????????????????? | | ??????????????????????? ### #??????????????????? | | ?????????????????????? ???##??????????????????? | | ??????????????????????* ???????????????????????? | | ?????????????????????? ???????????????????????? | | ????????????????????? ????????????????????????? | | ?????????????????????